Cogmind - Beta 13 @@@ ROGUE MODE // 2024.04.01 @ 21:25:33 Player: Aa1k Result: Self-destructed Performance ------------- Evolutions (1) 500 Regions Visited (4) 800 Robots Destroyed (34) 170 Value Destroyed (899) 899 Prototype IDs (0) 0 Alien Tech Used (0) 0 Bonus (0) 0 TOTAL SCORE: 2369 Bonus ------- None Cogmind --------- Core Integrity 69/400 Matter 300/300 Energy 100/100 System Corruption 0% Temperature Cool (0) Movement Core (100) Ox1 Location -9/Mines Parts ------- > --- POWER (1) -------- (None) > --- PROPULSION (3) --- (None) > --- UTILITY (2) ------ Small Storage Unit > --- WEAPON (3) ------- (None) > --- INVENTORY (8) ---- Shield Generator Tractor Beam Peak State ------------ > --- POWER ------------ Improved Ion Engine > --- PROPULSION ------- Light Treads Light Treads Light Treads > --- UTILITY ---------- Large Matter Pod Medium Armor Plating > --- WEAPON ----------- Heavy EM Pulse Gun Heavy Assault Rifle Heavy Assault Rifle > --- INVENTORY -------- Shield Generator Tractor Beam Heavy EM Pulse Gun Heavy EM Pulse Gun Light Assault Rifle [Rating: 14] Favorites ----------- Power Ion Engine Engine Ion Engine Propulsion Light Treads Treads Light Treads Leg Aluminum Leg Flight Unit Flight Unit Utility Large Matter Pod Device Structural Scanner Storage Large Matter Pod Protection Light Armor Plating Weapon Light Assault Rifle Energy Gun Small Laser Ballistic Gun Light Assault Rifle Build | -11 -10 -10 -9 -9 ------- Run | Yrd Mat Min Mat Min Slots Evolved 2 | . . . 2 . Power . | . . . . . Propulsion 1 | . . . 1 . Utility . | . . . . . Weapon 1 | . . . 1 . Parts Attached 46 | 7 4 2 26 7 Power 6 | 1 . . 5 . Engine 6 | 1 . . 5 . Core . | . . . . . Reactor . | . . . . . Propulsion 12 | 2 1 1 8 . Treads 4 | . . . 4 . Leg 5 | 2 1 1 1 . Wheel . | . . . . . Hover . | . . . . . Flight 3 | . . . 3 . Utility 13 | 1 2 . 7 3 Device 3 | . 1 . 1 1 Storage 6 | 1 1 . 3 1 Processor . | . . . . . Hackware . | . . . . . Protection 4 | . . . 3 1 Artifact . | . . . . . Weapon 15 | 3 1 1 6 4 Energy Gun 5 | 1 . . 1 3 Energy Cannon . | . . . . . Ballistic Gun 10 | 2 1 1 5 1 Ballistic Cannon . | . . . . . Launcher . | . . . . . Special Weapon . | . . . . . Impact Weapon . | . . . . . Slashing Weapon . | . . . . . Piercing Weapon . | . . . . . Special Melee Weapon . | . . . . . Unidentified Prototypes . | . . . . . Parts Lost 16 | . . 1 5 10 Power 2 | . . . 1 1 Propulsion 5 | . . . 3 2 Utility 1 | . . . . 1 Weapon 8 | . . 1 1 6 Highest Loss Streak 7 | . . 1 4 7 To Critical Strikes 1 | . . . 1 . Average Slot Usage (%) 92 | . 97 100 95 51 Engine 11 | . 14 14 10 3 Treads 16 | . . . 25 20 Leg 10 | . 28 28 2 . Flight 1 | . . . 3 . Device 1 | . 4 . . . Storage 18 | . 21 28 17 11 Protection 2 | . . . 3 2 Energy Gun 2 | . 6 . 1 6 Ballistic Gun 26 | . 21 28 29 9 Naked Turns . | . . . . . Heaviest Build 24 | 13 16 15 24 22 Greatest Support 60 | 20 20 20 60 60 Greatest Overweight (x) 4 | . . . 4 1 Average Overweight (x) . | . . . . . Largest Inventory Capacity 25 | 8 8 8 25 8 Average Capacity 7 | 6 8 8 6 6 Most Carried 8 | 6 7 8 8 8 Average Carried 5 | 3 6 7 5 2 Final Capacity 8 | 8 8 8 8 8 Final Carried 8 | 6 7 8 8 2 Class Distribution -------------------- 51% | Mutant 29% | Scavenger-Gunner 18% | Scavenger-Tank Dominant Class ---------------- Mutant | -10/Materials Mutant | -10/Mines Scavenger-Gunner | -9/Materials Mutant | -9/Mines Resources | -11 -10 -10 -9 -9 ----------- Run | Yrd Mat Min Mat Min Matter Collected 1141 | 222 151 172 569 27 Remotely . | . . . . . Salvage Created 1145 | . 215 138 695 97 Parts 79 | . 20 6 51 2 Haulers Intercepted . | . . . . . Recyclers Shooed 2 | . 1 . 1 . Parts Field Recycled . | . . . . . Retrieved Matter . | . . . . . Parts Self-Destructed . | . . . . . Prevented . | . . . . . Kills | -11 -10 -10 -9 -9 ------- Run | Yrd Mat Min Mat Min Combat Hostiles Destroyed 30 | . 6 4 15 5 Guns 29 | . 6 4 15 4 AOE 1 | . . . . 1 Classes Destroyed 9 | . 3 . 3 3 Worker 2 | . . . 2 . Tunneler 1 | . . . . 1 Recycler 1 | . . . 1 . Watcher 3 | . 2 . 1 . Swarmer 9 | . 2 2 5 . Grunt 11 | . 4 2 4 1 Sentry 6 | . . . 6 . Demolisher 1 | . . . . 1 Assembled 3 | . . . . 3 Best Kill Streak 7 | . 7 2 4 5 Combat Bots Only 4 | . 4 2 4 4 Max Kills in Single Turn 2 | . 1 2 1 2 Gunslinging 1 | . . 1 . . Exploded 1 | . . . . 1 Melee . | . . . . . Uniques/NPCs Destroyed . | . . . . . Combat | -11 -10 -10 -9 -9 -------- Run | Yrd Mat Min Mat Min Hostile Shots Fired 261 | . 26 49 108 78 Missed 84 | . 8 16 42 18 Damage Taken 2381 | . 224 342 758 1057 Core 481 | . 18 132 147 184 Absorbed by Shields . | . . . . . Core Remaining (%) 70 | 100 . 40 . . Volleys Fired 115 | . 30 20 53 12 Largest 3 | . 2 2 3 3 Hottest 110 | . 60 40 80 110 Shots Fired 271 | . 59 38 145 29 Gun 271 | . 59 38 145 29 Cannon . | . . . . . Launcher . | . . . . . Special . | . . . . . Kinetic 234 | . 52 38 130 14 Thermal 22 | . 7 . 15 . Explosive . | . . . . . Electromagnetic 15 | . . . . 15 Robot Hit Streak 11 | . 7 4 11 6 Robot Miss Streak 5 | . 2 3 5 4 Penetration Max . | . . . . . Secondary Targets 7 | . 1 1 2 3 Max Gunslinging Chain 1 | . 1 1 1 1 Shots Hit Robots 153 | . 30 24 81 18 Core Hits 70 | . 14 10 33 13 Critical Kills . | . . . . . Critical Parts Destroyed 1 | . . . 1 . Critical Strikes 1 | . . . 1 . Destroy 1 | . . . 1 . Melee Attacks . | . . . . . Impact . | . . . . . Slashing . | . . . . . Piercing . | . . . . . Sneak Attacks . | . . . . . Combat Hostiles . | . . . . . Follow-up Attacks . | . . . . . Damage Inflicted 1883 | . 360 196 980 347 Guns 1806 | . 360 196 979 271 Cannons . | . . . . . Explosions 76 | . . . . 76 Melee . | . . . . . Ramming 1 | . . . 1 . Kinetic 1481 | . 315 196 874 96 Thermal 226 | . 45 . 105 76 Explosive . | . . . . . Electromagnetic 175 | . . . . 175 Impact . | . . . . . Slashing . | . . . . . Piercing . | . . . . . Highest Corruption . | . . . . . Average Corruption . | . . . . . Corruption Purged . | . . . . . Corruption Blocked . | . . . . . Overload Shots . | . . . . . Overflow Damage . | . . . . . Projectiles . | . . . . . Explosions . | . . . . . Melee . | . . . . . Knockbacks . | . . . . . Impact . | . . . . . Kinetic . | . . . . . Secondary . | . . . . . Self-Inflicted Damage . | . . . . . Shots . | . . . . . Rammed 1 | . . . 1 . Targets Rammed 1 | . . . 1 . Kicked . | . . . . . Crushed . | . . . . . Highest Temperature 233 | . 45 15 91 233 Average Temperature 41 | . 20 8 24 117 Received Heat Transfer 632 | . 111 120 201 200 Siege Activations . | . . . . . Robots Corrupted . | . . . . . Combat Hostiles . | . . . . . Parts Fried . | . . . . . Impact Corruptions . | . . . . . Robots Melted . | . . . . . Combat Hostiles . | . . . . . Parts Melted 1 | . . . 1 . Heat Transferred 400 | . 100 . 250 50 Parts Sabotaged . | . . . . . Parts Stolen . | . . . . . Parts Stripped . | . . . . . Power Chain Reactions 1 | . . . . 1 Alert | -11 -10 -10 -9 -9 ------- Run | Yrd Mat Min Mat Min Peak Influence 388 | . 240 198 388 151 Initial 151 | . . 93 76 151 Average 190 | . 96 160 266 118 Maximum Alert Level 1 | . 1 . 1 . Low Security (%) 56 | 100 77 100 26 100 Level 1 43 | . 22 . 73 . Level 2 . | . . . . . Level 3 . | . . . . . Level 4 . | . . . . . Level 5 . | . . . . . High Security . | . . . . . Max Security . | . . . . . Squads Dispatched 3 | . 1 . 2 . Investigation . | . . . . . Extermination . | . . . . . Reinforcement 3 | . 1 . 2 . Assault . | . . . . . Garrison . | . . . . . Intercept . | . . . . . Searches Triggered . | . . . . . Construction Impeded . | . . . . . Haulers Reinforced . | . . . . . Active Scanning Responses . | . . . . . Cargo Convoy Interrupts . | . . . . . Stealth | -11 -10 -10 -9 -9 --------- Run | Yrd Mat Min Mat Min Distress Signals 3 | . 2 . 1 . Communications Jammed . | . . . . . Distress Signals . | . . . . . Times Spotted 81 | . 13 5 29 34 Peak Tracking Total 20 | . 8 3 5 20 Tactical Retreats 6 | . 3 . 1 2 Traps | -11 -10 -10 -9 -9 ------- Run | Yrd Mat Min Mat Min Traps Triggered . | . . . . . Indirectly . | . . . . . Trap Hack Attempts . | . . . . . Triggered . | . . . . . Disarmed . | . . . . . Reprogrammed . | . . . . . Reused . | . . . . . Traps Extracted . | . . . . . Installed . | . . . . . Triggered . | . . . . . Machines | -11 -10 -10 -9 -9 ---------- Run | Yrd Mat Min Mat Min Machines Disabled 1 | . . . 1 . Max in Single Turn 1 | . . . 1 . Machines Repaired . | . . . . . Machines Dismantled . | . . . . . Machines Sabotaged . | . . . . . Overloaded Fab Kills . | . . . . . Hacking | -11 -10 -10 -9 -9 --------- Run | Yrd Mat Min Mat Min Machines Accessed . | . . . . . Terminals . | . . . . . Fabricators . | . . . . . Repair Stations . | . . . . . Recycling Units . | . . . . . Scanalyzers . | . . . . . Garrison Access . | . . . . . Total Hacks . | . . . . . Successful . | . . . . . Failed . | . . . . . Catastrophic . | . . . . . Database Lockouts . | . . . . . Manual . | . . . . . Terminals . | . . . . . Fabricators . | . . . . . Repair Stations . | . . . . . Recycling Units . | . . . . . Scanalyzers . | . . . . . Garrison Access . | . . . . . Terminal Hacks . | . . . . . Fabricator Hacks . | . . . . . Repair Station Hacks . | . . . . . Recycling Unit Hacks . | . . . . . Scanalyzer . | . . . . . Garrison Access Hacks . | . . . . . Unauthorized Hacks . | . . . . . Terminals . | . . . . . Fabricators . | . . . . . Repair Stations . | . . . . . Recycling Units . | . . . . . Scanalyzers . | . . . . . Garrison Access . | . . . . . Data Cores Recovered . | . . . . . Used . | . . . . . Hacking Detections . | . . . . . Full Trace Events . | . . . . . Feedback Events . | . . . . . Feedback Blocked . | . . . . . Robot Schematics Acquired . | . . . . . Robots Built . | . . . . . Authchips . | . . . . . Time . | . . . . . Total Robot Build Rating . | . . . . . Part Schematics Acquired . | . . . . . Parts Built . | . . . . . Authchips . | . . . . . Time . | . . . . . Total Part Build Rating . | . . . . . Parts Repaired . | . . . . . Time . | . . . . . Parts Recycled . | . . . . . Recycled Matter . | . . . . . Retrieved Matter . | . . . . . Retrieved Components . | . . . . . Parts Scanalyzed . | . . . . . Part Schematics Acquired . | . . . . . Parts Damaged . | . . . . . Bothacking | -11 -10 -10 -9 -9 ------------ Run | Yrd Mat Min Mat Min Used RIF Installer . | . . . . . Robots Hacked . | . . . . . Non-combat . | . . . . . Combat . | . . . . . Robot Hacks Applied . | . . . . . Relay Couplers Released . | . . . . . Fabnet Peak Effective % . | . . . . . Robots Rewired . | . . . . . Allies Hacked . | . . . . . Hacks Repelled . | . . . . . Allies | -11 -10 -10 -9 -9 -------- Run | Yrd Mat Min Mat Min Total Allies . | . . . . . Largest Group . | . . . . . Highest-Rated Group . | . . . . . Highest-Rated Ally . | . . . . . Total Orders . | . . . . . Ally Attacks . | . . . . . Total Damage . | . . . . . Kills . | . . . . . Allies Corrupted . | . . . . . Allies Melted . | . . . . . Intel | -11 -10 -10 -9 -9 ------- Run | Yrd Mat Min Mat Min Robot Analysis Total . | . . . . . Derelict Logs Recovered . | . . . . . Drone Launches . | . . . . . Drone Recoveries . | . . . . . Exploration | -11 -10 -10 -9 -9 ------------- Run | Yrd Mat Min Mat Min Turns Passed 1349 | 111 234 172 729 103 Spaces Moved 727 | 82 117 97 392 39 Core 14 | 3 . . 4 7 Treads 300 | . . . 268 32 Legs 321 | 79 117 97 28 . Wheels . | . . . . . Hover . | . . . . . Flight 92 | . . . 92 . Fastest Speed 34 | 50 120 120 34 100 Average Speed 126 | 117 120 120 129 149 Slowest Speed 280 | 120 120 120 280 160 Overloaded Moves . | . . . . . Propulsion Burnouts . | . . . . . Robots Hopped . | . . . . . Cave-ins Triggered . | . . . . . Exploration Rate (%) 19 | 5 22 21 27 23 Regions Visited 4 Branch Regions 2 Pre-discovered Areas . | . . . . . Known Exits Taken . | . . . . . Unknown Exits Taken 4 | 1 1 1 1 . Scrap Searched 1 | . . 1 . . Spaces Dug . | . . . . . Terrain Destroyed 1 | . . . . 1 Melee . | . . . . . Projectile . | . . . . . AOE 1 | . . . . 1 Terrain Rammed . | . . . . . Walls Destroyed . | . . . . . Machines Disabled . | . . . . . Actions | -11 -10 -10 -9 -9 --------- Run | Yrd Mat Min Mat Min Total 943 | 93 155 121 514 60 Wait 1 | . 1 . . . Move 723 | 81 116 96 391 39 Hop . | . . . . . Pick Up 27 | 5 2 2 18 . Fast Attach 20 | 6 1 . 12 1 Attach 14 | . 1 1 8 4 Detach 2 | . . . 1 1 Swap 12 | 1 2 1 6 2 Drop 28 | . 2 1 24 1 Fire 115 | . 30 20 53 12 Melee . | . . . . . Ram . | . . . . . Kick . | . . . . . Crush 1 | . . . 1 . Escape Stasis . | . . . . . Rewire . | . . . . . Trap . | . . . . . Miscellaneous . | . . . . . Route ------- -11/Scrapyard -10/Materials -10/Mines -9/Materials -9/Mines History --------- Turn | Location | Event 2 | -11/Scrapyard | Met Revision 17 6 | -11/Scrapyard | Discovered new exit (range 15) 112 | -11/Scrapyard | Entered Materials 236 | -10/Materials | Discovered new exit (range 7) 301 | -10/Materials | Build established: Mutant 346 | -10/Materials | Entered Mines 460 | -10/Mines | Core integrity fell below 50% 500 | -10/Mines | Discovered new exit (range 15) 518 | -10/Mines | Entered Materials 518 | -9/Materials | Evolved 2 slots: Propulsion x1, Weapon x1 617 | -9/Materials | Lost 4 parts (1p2n1w) 1007 | -9/Materials | Discovered new exit (range 7) 1247 | -9/Materials | Entered Mines 1248 | -9/Mines | Assembled infested the area 1270 | -9/Mines | Core integrity fell below 50% 1305 | -9/Mines | Lost 7 parts (1p1n1u4w) 1350 | -9/Mines | Core integrity fell below 20% 1350 | -9/Mines | Self-destructed Last Messages --------------- Acquired Sml. Storage Unit. R-06 Scavenger collects Wheel. U-05 Engineer lays Concrete. U-05 Engineer builds a Wall. The unstable cave ceiling collapses. U-05 Engineer builds a Wall. Acquired 10 matter. R-06 Scavenger collects Cmb. Airjet. K-01 Serf collects debris. U-05 Engineer lays Concrete. K-01 Serf collects debris. G-34 Mercenary destroyed. Switching to secondary target: G-34 Mercenary. Lgt. Treads destroyed. Hvy. EM Pulse Gun destroyed. Lgt. Assault Rifle destroyed. K-01 Serf destroyed. G-34 Mercenary IFF system glitched. Lgt. Treads severed. G-34 Mercenary destroyed. Map ----- +----------------------------------------------------+ | ? ?????????????????????????????????????????? | | ? #????????????????????????????????????????? | | ? ????????????????????????????????????????? | | ? " ????????????????????????????????????????? | | ## #????????????????????????????????????????? | | # ###??????????????????????????????????????? | | % ##?????????????????????????????????????? | | % ??????????????????????????????????????? | | # ! ####???????????????????????????????????? | | ##??????????????????????????????????? | | # #??????????????????????????????????? | | #???????####???????????????????????? | | ! ##?????## ####????????????????????? | | # % ##???? ##???????????????????? | | # #????# #???????????????????? | | # # #???## #???????????????????? | | # ##? ##???# #????????????????????? | | # ######??#???## #?????????????????????? | | # #??????# #??????????????????????? | | #% #### #??????# ##?????????????????????? | | #?#=#???????# #?????????????????????? | | """ #?#%#?####### ##????????????????????? | | """ #?# ### ## ##???????????????????? | | """ #?# [%= a% ##??????????????????? | | #?####! ! = a ##?????????????????? | | #????## a a@ #?????????????????? | | #?????# ## ## a### ??????????? | | #####?????# ####### #?## g ??????? | | ??????????# #?????# !#???# #??????? | | ??????????# #?????#|%#????# ##??????? | | ??????????# #?????# #?????# gg #???????? | | ??????????# #?????# #??????# #???????? | | ??????????# #?????# ??????? ???????? | | ??????????# #?????####???????? ???????? | | ?????????? #?????????????????? ???????? | | ?????????? ##???????????????????### ????????? | | ??????????# ?????????????????????????????????? | | ??????????# ?????????????????????????????????? | | ??????????? ?????????????????????????????????? | | ?????????????????????????????????????????????? | | ?????????????????????????????????????????????? | | ?????????????????????????????????????????????? | | ?????????????????????????????????????????????? | | ?????????????????????????????????????????????? | | ?????????????????????????????????????????????? | | ?????????????????????????????????????????????? | | ?????????????????????????????????????????????? | | ?????????????????????????????????????????????? | | ?????????????????????????????????????????????? | | ?????????????????????????????????????????????? | +----------------------------------------------------+ Best States ------------- Heat Dissipation 38 Energy Generation 12 Energy Capacity 265 Matter Stores 450 Matter Capacity 450 Sight Range 16 Terrain Scan Density 10 Armor Coverage 225 Evasion (%) 63 Recoil Reduction 3 Item Schematics ----------------- None Robot Schematics ------------------ None Fabricated ------------ Nothing Alien Tech Used ----------------- None Achievements -------------- Hunted Challenges ------------ None Game ------ Seed EnhancedRemoteRegenerator Manual? 0 Play Time 00:17:09 Cumulative 6.5 hours Start 2024.04.01 @ 21:09:43 End 2024.04.01 @ 21:25:33 Sessions 1 Manual Loads 0 Difficulty Rogue Special Mode None Game No. 10 Rogue 10 Adventurer 0 Explorer 0 Win Type - Total 0 Types 0/0/0/0/0/0/0/0/0 Lore% 3 Gallery% 16 Achievement% 12 Wizard Run 0 Options --------- Layout 1 ASCII 0 Keyboard 0 Movement Arrows Keybinds 0 Fullscreen 1 Font 24/Smallcaps Map View 50x35 Zoom Use 0% Tactical HUD 0 Map Filters NONE Filters NONE Steam 1 RUN: bf7e9566-1a52-47db-879f-bab96bfadc09